Workbook

Sheet ULUNDI-LA-P2-R1
A1: .
A2: ITEM NO | B2: DESCRIPTION | C2: UNIT | D2: QUANTITY | E2: RATE | F2: AMOUNT
B4: SECTION NO.1
B6: BILL NO.1
B8: PRELIMINARY AND GENERAL
B10: NOTES
B12: i) The agreement is to be the General Conditions of Contract for Works of Civil Engineering Construction (2010) (Second Edition), published by the S. A. Institution Of Civil Engineering.
B13: ii) The Preliminaries are to be the Construction and management requirements for works contracts - Part 1: General engineering and construction works (SANS 1921-1: 2004 Edition 1) prepared by Standards South Africa and shall be deemed to be incorporated herein.
B14: iii) Tenderers are referred to the above-mentioned documents for the full intent and meaning of each clause thereof (hereinafter referred to by heading and clause number only) for which such allowance must be made as may be considered necessary.
B15: iv) Where standard clauses or alternatives are not entirely applicable to this contract such modifications, corrections or supplements as will apply are given under each relevant clause heading.
B16: v) Where any item is not relevant to this specific contract such item is marked N/A (signifying "not applicable").
B17: vi) Adjustment of the preliminaries: each item priced, is to be allocated to one or more of the three categories, where "F" denotes a fixed amount (amount not to be varied), "V" denotes an amount variable in proportion to value and "T" denotes an amount in proportion to time.
B18: vii) Time (T) related Preliminaries will only be adjusted for omissions or additions, issued by the Employer, or delays caused by the Employer, for which variation and extension of time has been granted.
B20: SECTION A: GENERAL CONDITIONS OF CONTRACT
A22: 1 | B22: A1 General (clause 1) F:___________ V:___________ T:____________ | C22: Item | D22: 1 | E22: 0 | F22: =D22*E22 -> 0
A24: 2 | B24: A2 Basis of contract (clause 2) F:___________ V:___________ T:____________ | C24: Item | D24: 1 | E24: 0 | F24: =D24*E24 -> 0
A27: 3 | B27: A3 Engineer (clause 3) F:___________ V:___________ T:____________ | C27: Item | D27: 1 | E27: 0 | F27: =D27*E27 -> 0
A29: 4 | B29: A4 Contractors general obligations (clause 4) F:___________ V:___________ T:____________ | C29: Item | D29: 1 | E29: 0 | F29: =D29*E29 -> 0
A31: 5 | B31: A5 Time and related matters (clause 5) - As referred to in the Contract Data under Special Conditions of Contract. The Contract Period shall be deemed to include all Non-Working Days, Special Non - Working Days and the year-end Builders Annual Industry Holiday Periods F:___________ V:___________ T:____________ | C31: Item | D31: 1 | E31: 0 | F31: =D31*E31 -> 0
A33: 6 | B33: A6 Payment and related matters (clause 6) F:___________ V:___________ T:____________ | C33: Item | D33: 1 | E33: 0 | F33: =D33*E33 -> 0
A35: 7 | B35: A7 Quality and related matters (clause 7) F:___________ V:___________ T:____________ | C35: Item | D35: 1 | E35: 0 | F35: =D35*E35 -> 0
A37: 8 | B37: A8 Risks and related matters (clause 8) F:___________ V:___________ T:____________ | C37: Item | D37: 1 | E37: 0 | F37: =D37*E37 -> 0
A39: 9 | B39: A9 Terminations of contract (clause 9) F:___________ V:___________ T:____________ | C39: Item | D39: 1 | E39: 0 | F39: =D39*E39 -> 0
A41: 10 | B41: A10 Claims and disputes (clause 10) F:___________ V:___________ T:____________ | C41: Item | D41: 1 | E41: 0 | F41: =D41*E41 -> 0
B43: SECTION B: SANS 1921-1:2004 (Edition 1): CONSTRUCTION AND MANAGEMENT REQUIREMENTS FOR WORKS CONTRACTS: PART 1
B45: Refer to the SCOPE OF WORK for detail requirements:
A47: 11 | B47: B1 Scope (clause 1) F:___________ V:___________ T:____________ | C47: Item | D47: 1 | E47: 0 | F47: =D47*E47 -> 0
A49: 12 | B49: B2 Normative references (clause 2) F:___________ V:___________ T:____________ | C49: Item | D49: 1 | E49: 0 | F49: =D49*E49 -> 0
A51: 13 | B51: B3 Definitions (clause 3) F:___________ V:___________ T:____________ | C51: Item | D51: 1 | E51: 0 | F51: =D51*E51 -> 0
A53: 14 | B53: B4 Requirements for construction and management (clause 4) F:___________ V:___________ T:____________ | C53: Item | D53: 1 | E53: 0 | F53: =D53*E53 -> 0
A56: 15 | B56: B4.1 General (Clause 4.1) F:___________ V:___________ T:____________ | C56: Item | D56: 1 | E56: 0 | F56: =D56*E56 -> 0
A58: 16 | B58: B4.2 Responsibilities for design and construction (clause 4.2) F:___________ V:___________ T:____________ | C58: Item | D58: 1 | E58: 0 | F58: =D58*E58 -> 0
A60: 17 | B60: B4.3 Planning, programme and method statements (clause 4.3) F:___________ V:___________ T:____________ | C60: Item | D60: 1 | E60: 0 | F60: =D60*E60 -> 0
A62: 18 | B62: B4.4 Quality assurance (clause 4.4) F:___________ V:___________ T:____________ | C62: Item | D62: 1 | E62: 0 | F62: =D62*E62 -> 0
A64: 19 | B64: B4.5 Setting out (clause 4.5) F:___________ V:___________ T:____________ | C64: Item | D64: 1 | E64: 0 | F64: =D64*E64 -> 0
A66: 20 | B66: B4.6 Management and disposal of water (clause 4.6) F:___________ V:___________ T:____________ | C66: Item | D66: 1 | E66: 0 | F66: =D66*E66 -> 0
A68: 21 | B68: B4.7 Blasting (Clause 4.7) F:___________ V:___________ T:____________ | C68: Item | D68: 1 | E68: 0 | F68: =D68*E68 -> 0
A70: 22 | B70: B4.8 Works adjacent to services and structures (clause 4.8) F:___________ V:___________ T:____________ | C70: Item | D70: 1 | E70: 0 | F70: =D70*E70 -> 0
A72: 23 | B72: B4.9 Management of the Works and site (clause 4.9) F:___________ V:___________ T:____________ | C72: Item | D72: 1 | E72: 0 | F72: =D72*E72 -> 0
A74: 24 | B74: B4.10 Earthworks (clause 4.10) F:___________ V:___________ T:____________ | C74: Item | D74: 1 | E74: 0 | F74: =D74*E74 -> 0
A76: 25 | B76: B4.11 Testing (clause 4.11) F:___________ V:___________ T:____________ | C76: Item | D76: 1 | E76: 0 | F76: =D76*E76 -> 0
A79: 26 | B79: B4.12 Materials, samples and fabrication drawings (clause 4.12) F:___________ V:___________ T:____________ | C79: Item | D79: 1 | E79: 0 | F79: =D79*E79 -> 0
A81: 27 | B81: B4.13 Equipment (clause 4.13) F:___________ V:___________ T:____________ | C81: Item | D81: 1 | E81: 0 | F81: =D81*E81 -> 0
A83: 28 | B83: B4.14 Site establishment (clause 4.14) F:___________ V:___________ T:____________ The Contractor to provide a detailed Site Establishment plan to the Principal Agent. | C83: Item | D83: 1 | E83: 0 | F83: =D83*E83 -> 0
A85: 29 | B85: B4.15 Survey control (clause 4.15) F:___________ V:___________ T:____________ | C85: Item | D85: 1 | E85: 0 | F85: =D85*E85 -> 0
A87: 30 | B87: B4.16 Temporary works (clause 4.16) F:___________ V:___________ T:____________ | C87: Item | D87: 1 | E87: 0 | F87: =D87*E87 -> 0
A89: 31 | B89: B4.17 Existing services (clause 4.17) F:___________ V:___________ T:____________ The tenderer to note that the water and electricity supplies are restricted or possibly non-existent. Accordingly, the tenderer to ensure that temporary supplies (water tanks/electrical generators) are available on site to meet the project demands and to achieve continuity of the works on site.The use of potable water for construction activities is prohibited. | C89: Item | D89: 1 | E89: 0 | F89: =D89*E89 -> 0
A91: 32 | B91: B4.18 Health and safety (clause 4.18) F:___________ V:___________ T:____________ The Contractor shall provide all PPE requirements for all employees and visitors to the site, during the execution of the works. | C91: Item | D91: 1 | E91: 0 | F91: =D91*E91 -> 0
A93: 33 | B93: B4.19 Environmental requirements (clause 4.19) F:___________ V:___________ T:____________ | C93: Item | D93: 1 | E93: 0 | F93: =D93*E93 -> 0
A95: 34 | B95: B4.20 Alterations, additions, extensions and modifications to existing works (clause 4.20) F:___________ V:___________ T:____________ | C95: Item | D95: 1 | E95: 0 | F95: =D95*E95 -> 0
A97: 35 | B97: B4.21 Inspection of adjoining structures, services, buildings and property (clause 4.21) F:___________ V:___________ T:____________ | C97: Item | D97: 1 | E97: 0 | F97: =D97*E97 -> 0
A99: 36 | B99: B4.22 Attendance on nominated and selected subcontractors (clause 22) F:___________ V:___________ T:____________ | C99: Item | D99: 1 | E99: 0 | F99: =D99*E99 -> 0
B101: SECTION C: SCOPE OF WORK IN ACCORDANCE WITH SANS 10403
B103: (The reference to Clauses refer to Table B.1 of SANS 1921-1:2004)
A105: 37 | B105: C.1 Certification by recognised bodies (clause 4.4) F:___________ V:___________ T:____________ The Contractor shall provide all original certification of compliance in respect of all specialist installations and compliance testing as deemed necessary or as stipulated by the engineer. Payment will be withheld in the absence of the provision of original compliance certificates. | C105: Item | D105: 1 | E105: 0 | F105: =D105*E105 -> 0
A107: 38 | B107: C.2 Agreement certificates (clause 4.5) F:___________ V:___________ T:____________ | C107: Item | D107: 1 | E107: 0 | F107: =D107*E107 -> 0
A109: 39 | B109: C.3 Other services and facilities (clause 4.8) F:___________ V:___________ T:____________ | C109: Item | D109: 1 | E109: 0 | F109: 0
A111: 40 | B111: C.4 Recording of weather (clause 5.2) F:___________ V:___________ T:____________ A rain gauge shall be provided on site for the duration of the contract. A diary shall be maintained with all rainfall records and signed off by the Principal Agent and thereafter submitted to the Engineer at every site meeting. | C111: Item | D111: 1 | E111: 0 | F111: =D111*E111 -> 0
A113: 41 | B113: C.5 Management meetings (clause 5.3) F:___________ V:___________ T:____________ | C113: Item | D113: 1 | E113: 0 | F113: =D113*E113 -> 0
A115: 42 | B115: C.6 Daily records (clause 5.6) F:___________ V:___________ T:____________ | C115: Item | D115: 1 | E115: 0 | F115: =D115*E115 -> 0
A117: 43 | B117: C.7 Bond and guarantees (clause 5.7) F:___________ V:___________ T:____________ | C117: Item | D117: 1 | E117: 0 | F117: =D117*E117 -> 0
A119: 44 | B119: C.8 Permits (clause 5.9) F:___________ V:___________ T:____________ | C119: Item | D119: 1 | E119: 0 | F119: =D119*E119 -> 0
A121: 45 | B121: C.9 Proof of compliance with the law (clause 5.10) F:___________ V:___________ T:____________ | C121: Item | D121: 1 | E121: 0 | F121: =D121*E121 -> 0
B123: SECTION D: SPECIFICATION DATA ASSOCIATED WITH SANS 1921-1:2004 (Table A.1)
A125: 46 | B125: D.1 Requirements for drawings, information and calculations for which the Contractor is responsible (clause 4.1.7) F:___________ V:___________ T:____________ | C125: Item | D125: 1 | E125: 0 | F125: =D125*E125 -> 0
A127: 47 | B127: D.2 The responsibility strategy assigned to the Contractor for the works (clause 4.2.1) F:___________ V:___________ T:____________ | C127: Item | D127: 1 | E127: 0 | F127: =D127*E127 -> 0
A129: 48 | B129: D.3 The planning, programme and method statements (clause 4.3) F:___________ V:___________ T:____________ The Contractor must provide weekly programme updates to the Principal Agent including the identification of all the activities that are delayed and the proposed plan for corrective action. | C129: Item | D129: 1 | E129: 0 | F129: =D129*E129 -> 0
A131: 49 | B131: D.4 Samples of materials, workmanship and finishes (clause 4.12.1) F:___________ V:___________ T:____________ | C131: Item | D131: 1 | E131: 0 | F131: =D131*E131 -> 0
A133: 50 | B133: D.5 Fabrication drawings that the Contractor is to provide and deliver to the employer (clause 4.12.2) F:___________ V:___________ T:____________ | C133: Item | D133: 1 | E133: 0 | F133: =D133*E133 -> 0
A135: 51 | B135: D.6 Office for the foreman (clause 4.14.3) F:___________ V:___________ T:____________ | C135: Item | D135: 1 | E135: 0 | F135: =D135*E135 -> 0
A137: 52 | B137: D.7 Telephone (clause 4.14.3) F:___________ V:___________ T:____________ | C137: Item | D137: 1 | E137: 0 | F137: =D137*E137 -> 0
A139: 53 | B139: D.8 Office for inspector of works (clause 4.14.3) F:___________ V:___________ T:____________ | C139: Item | D139: 1 | E139: 0 | F139: =D139*E139 -> 0
A141: 54 | B141: D.9 Telephone in office for inspector of works (clause 4.14.3) F:___________ V:___________ T:____________ | C141: Item | D141: 1 | E141: 0 | F141: =D141*E141 -> 0
A143: 55 | B143: D.10 Sheds (clause 4.14.3) F:___________ V:___________ T:____________ | C143: Item | D143: 1 | E143: 0 | F143: =D143*E143 -> 0
A145: 56 | B145: D.11 Provision and erection of signboards (clause 4.14.6) F:___________ V:___________ T:____________ | C145: Item | D145: 1 | E145: 0 | F145: =D145*E145 -> 0
A147: 57 | B147: D.12 Termination, diversion or maintenance of existing services (clause 4.17.1) F:___________ V:___________ T:____________ | C147: Item | D147: 1 | E147: 0 | F147: =D147*E147 -> 0
A149: 58 | B149: D.13 Services which are known to exist (clause 4.17.3) F:___________ V:___________ T:____________ | C149: Item | D149: 1 | E149: 0 | F149: =D149*E149 -> 0
A151: 59 | B151: D.14 Detection apparatus (clause 4.17.4) F:___________ V:___________ T:____________ | C151: Item | D151: 1 | E151: 0 | F151: =D151*E151 -> 0
A153: 60 | B153: D.15 Additional health and safety requirements (clause 4.18) F:___________ V:___________ T:____________ | C153: Item | D153: 1 | E153: 0 | F153: =D153*E153 -> 0
B155: SECTION E: SPECIFIC PRELIMINARIES
B157: Section E contains Specific Preliminary items which apply to this contract except where "N/A" ( Not Applicable) appears against the item.
A159: 61 | B159: E1 PROPRIETARY BRANDED PRODUCTS The tenderer shall take delivery of, handle, store, use apply and/or fix all proprietary branded products in strict accordance with the manufacturers' instruction after consultation with the manufacturer's authorised representative. F:___________ V:___________ T:____________ | C159: Item | D159: 1 | E159: 0 | F159: =D159*E159 -> 0
A161: 62 | B161: E2 OVERTIME Should overtime be required to be worked for any reason whatsoever, the costs of such overtime are to be borne by the Contractor unless the Engineer/Principal Agent has specifically authorised in writing, prior to the execution thereof, that costs for such overtime are to be borne by the Employer. F:___________ V:___________ T:____________ | C161: Item | D161: 1 | E161: 0 | F161: =D161*E161 -> 0
A163: 63 | B163: E3 AS BUILT DRAWINGS The position of construction breaks and the extent of individual concrete pours are to be recorded by the Contractor on the Structural Engineer's drawings and are to be submitted to the Engineer/Principal Agent and the Structural Engineer for their records. F:___________ V:___________ T:____________ | C163: Item | D163: 1 | E163: 0 | F163: =D163*E163 -> 0
A165: 64 | B165: E4 SITE INSTRUCTIONS Site instructions issued on site are to be recorded in triplicate in a site instruction book which is to be maintained on site by the Contractor. F:___________ V:___________ T:____________ | C165: Item | D165: 1 | E165: 0 | F165: =D165*E165 -> 0
A167: 65 | B167: E5 LABOUR RECORD At the end of each week for the full duration of the contract, the Contractor shall provide the Engineer/Principal agent with a written record, in schedule form, reflecting the number and description of tradesmen and labourers employed by him and all sub-contractors on the works each day. The Contractor shall provide the completed DPW local labour forms , records and schedules together with all supporting documentation ( certified ID copies , employee details, wage rates, proof of payment , period of employment, employment contracts, etc.). The client reserves the right to conduct random inspections on site to verify the local labour employed on the project. F:___________ V:___________ T:____________ | C167: Item | D167: 1 | E167: 0 | F167: =D167*E167 -> 0
A169: 66 | B169: E6 PLANT RECORD At the end of each week the Contractor shall provide the Engineer/Principal Agent with a written record, in schedule form, reflecting the number, type and capacity of all plant, excluding hand tools, currently used on the works. F:___________ V:___________ T:____________ | C169: Item | D169: 1 | E169: 0 | F169: =D169*E169 -> 0
A171: 67 | B171: E7 NON CESSION OF MONIES The Contractor shall not cede nor assign his rights or claims to any monies due or to become due under this contract. F:___________ V:___________ T:____________ | C171: Item | D171: 1 | E171: 0 | F171: =D171*E171 -> 0
A173: 68 | B173: E8 SECTIONAL COMPLETION When it is required that the contract be executed in sections or portions, the tenderer shall allow for all costs in this regard as no claim for additional costs will be entertained. F:___________ V:___________ T:____________ | C173: Item | D173: 1 | E173: 0 | F173: =D173*E173 -> 0
A175: 69 | B175: E9 LOCAL LABOUR It is a general requirement of this contract that persons normally resident in the locality of the works (local labour) be given preference for employment on the contract. Provided, however, that should adequate and appropriate Labour not be available within the locality, other may be employed subject to satisfactory proof being provided that every reasonable endeavour has been made to employ local Labour. The Contractor shall identify the local community leaders with the purpose of negotiating with them regarding the utilization of local Labour in the construction process. The Contractor shall, in general, maximize the involvement of the local labour from the immediate community. F:___________ V:___________ T:____________ | C175: Item | D175: 1 | E175: 0 | F175: =D175*E175 -> 0
A177: 70 | B177: E10 IMPORT PERMITS AND DUTIES The responsibility for obtaining the necessary import permits shall rest with the successful Tenderer. No foreign exchange will be arranged or provided by the Administration. Tenderers are to allow in their tenders and pay the ordinary levy imposed on imported items in terms of item 196.10 of Part 8 of Schedule No. 1 of the Customs and Excise Act, 1964 with effect from 1 October 1989. F:___________ V:___________ T:____________ | C177: Item | D177: 1 | E177: 0 | F177: =D177*E177 -> 0
A179: 71 | B179: E11 CONTRACT PRICE ADJUSTMENT PROVISIONS (CPAP) Notwithstanding anything to the contrary contained in the GCC for Construction Works 2010 2nd Edition, this Contract shall only when the Construction Period exceeds 6 months and the Contract sum exceeds R1,000,000,00 be subject to the Contract Price Adjustment Provisions Indices Application Manual for use with P0151 indices (CPAP) (Revised 1 January 2013) as published by Statistics South Africa. Tenderers are advised that with reference to Clause 3.4.6 of the Contract Price Adjustment Provisions (CPAP) Indices Applications Manual, the Head: Public Works will not accept the submission by Tenderers of lists of additional items unless otherwise instructed. Where this contract is a Lump Sum contract, the contract will be subject to Contract Price Adjustment Provisions (CPAP) only where the contract period equals or exceeds 6 calendar months. The applicable work group shall be WG 180 for domestic buildings or WG 181 for commercial and industrial buildings. F:___________ V:___________ T:____________ | C179: N/A
A181: 72 | B181: E12 EXPANDED PUBLIC WORKS PROGRAMME (EPWP) Tenderers are advised that this contract will be subject to certain provisions of the Expanded Public Works Program (EPWP) aimed at alleviating and reducing unemployment. Tenderers must allow for any costs for the following employment requirements of the EPWP. 1. 55% of unskilled labour to be women. 2. 40% of unskilled labour to be youth aged between 18 and 35 years. 3. 2% of unskilled labour to be people living with disability. 4. 100% Unskilled labour utilised must reside within the boundries of the Municipality Ward where this contract is executed, with preference to the local community closest or at the walking distance to the contract site. Wherever possible local skilled tradesmen are to be employed on this contract with the view to maximize utilization of local resources. This is not an EPWP project. TENDERERS TO NOTE: Those parts of the contract to be constructed using Labour intensive methods have been marked in the bills of quantities/lump sum document with the letters LI (indicating "Labour Intensive") against every item so designated. The works, or parts of the works so designated are to be constructed using Labour intensive methods only. F:___________ V:___________ T:____________ | C181: N/A
A183: 73 | B183: E12.1 LABOUR RATE AND PAYMENT INTERVALS The Contractor should ensure that labour rate paid to unskilled local labour is commensurate to the daily task. When determining the rate, consideration should be given to beneficiaries are mostly bread winners in their families, as the program intends alleviating poverty. There should also be consideration that the labour rate promotes creation of expanded number of jobs created and person days of work. The labour rate for local unskilled shall also be determined in consideration of the location of the project, i.e. for projects implemented in urbanized municipalities will not be the same as that for rural municipalities. F:___________ V:___________ T:____________ | C183: Item | D183: 1 | E183: 0 | F183: =D183*E183 -> 0
A185: 74 | B185: E12.2 RECORD KEEPING Every employer must keep in the project site office the following minutes of site progress minutes; Contractor’s monthly site progress reports; accurately recorded attendance register; proof of payment as means to verify authenticity of data. F:___________ V:___________ T:____________ | C185: Item | D185: 1 | E185: 0 | F185: =D185*E185 -> 0
A187: 75 | B187: E13 HIV/AIDS AWARENESS Tenderers are to price against the following items for compliance with the SPECIFICATION FOR HIV/AIDS AWARENESS bound into this document (The clauses referred to are those of the Specification for HIV/AIDS) E13.1 Provide and maintain a condom dispenser in terms of Clause 5.1a F:___________ V:___________ T:____________ | C187: Item | D187: 1 | E187: 0 | F187: =D187*E187 -> 0
A189: 76 | B189: E13.1 Provide and maintain HIV/AIDS awareness posters terms of Clause 5.1b F:___________ V:___________ T:____________ | C189: Item | D189: 1 | E189: 0 | F189: =D189*E189 -> 0
A191: 77 | B191: E13.2 HIV /Aids Awareness Programme on Site for not less than 90% of workers inclusive of all direct and indirect costs; Engage a qualified service provider as described in the scope of works to conduct an HIV Awareness Programme in terms of Clause 5.2.1a F:___________ V:___________ T:____________ | C191: Item | D191: 1 | E191: 0 | F191: =D191*E191 -> 0
A193: 78 | B193: E13.3 Arrange for workers to attend the HIV Awareness Programme in terms of Clause 5.2.1b F:___________ V:___________ T:____________ | C193: Item | D193: 1 | E193: 0 | F193: =D193*E193 -> 0
A195: 79 | B195: E13.4 REPORTING Prepare and attach to claims for payment a brief report in terms of Clause 5.3 (see also HIV/STI Compliance Report (included with this document). F:___________ V:___________ T:____________ | C195: Item | D195: 1 | E195: 0 | F195: =D195*E195 -> 0
B197: Note: In the event that the Contractor fails to satisfy the requirements of this specification, the employer (Head: Public Works) may apply any of the sanctions provided for in the contract. Sanctions may include the application of a financial penalty of .04% of the Contract Sum.
A199: 80 | B199: E14 OCCUPATIONAL HEALTH AND SAFETY ACT NO. 85 OF 1993 Tenderers are to allow for costs in providing a project specific ' Construction Phase Safety, Health and Environmental Plan' in accordance with "Section 2 - Specification Data associated with SANS 1921-1:2004" clause C4.18 in "Part C3 - Scope of Work" F:___________ V:___________ T:____________ | C199: Item | D199: 1 | E199: 0 | F199: =D199*E199 -> 0
A201: 81 | B201: E15 NOTICE BOARD, SITE OFFICE, ETC. Bidders are to allow for the provision and removal of a project notice board and a site office in accordance with the Principal Agent's requirements. F:___________ V:___________ T:____________ | C201: Item | D201: 1 | E201: 0 | F201: =D201*E201 -> 0
A203: 82 | B203: E16 IMPORTED MATERIALS AND EQUIPMENT Where imported items are listed in the tender documents, the tenderer shall provide all information called for, failing which the price of any such item, material or equipment shall be excluded from currency fluctuations. F:___________ V:___________ T:____________ | C203: Item | D203: 1 | E203: 0 | F203: =D203*E203 -> 0
A205: 83 | B205: E17 CONTRACT DOCUMENTS The drawings issued with these Bid documents do not comprise the complete set but serves as a guide only for Biding purposes and for indicating the scope of works to enable the Bidder to acquaint him with the nature and extent of the works and the manner in which they are to be executed. Should any part of the drawings not be clearly legible to the Bidder he shall, before submitting his Bid, obtain clarification in writing from the Principal Agent. F:___________ V:___________ T:____________ | C205: Item | D205: 1 | E205: 0 | F205: =D205*E205 -> 0
A207: 84 | B207: E18 GENERAL PREAMBLES The Document Preambles will be the “ASAQS Model Preambles for Trades - 2017” shall be read in conjunction with the Bills of Quantities and be referred to for the full descriptions of work to be done and materials to be used. F:___________ V:___________ T:____________ | C207: Item | D207: 1 | E207: 0 | F207: =D207*E207 -> 0
A209: 85 | B209: E19 TRADE NAMES Wherever a Trade Name for any product has been described in the Bills of Quantities the Bidder's attention is drawn to the fact that any other product of equal quality may be used subject to the written approval of the Principal Agent being obtained prior to the closing date for submission of Bids. F:___________ V:___________ T:____________ | C209: Item | D209: 1 | E209: 0 | F209: =D209*E209 -> 0
A211: 86 | B211: E20 EXISTING PREMISES The Contractor's attention is drawn to the fact that the surrounding buildings will remain in occupation during the performance of this contract and it is essential that the interruption to the daily activities of be kept to a minimum during the construction activities, to this end, the Contractor must allow for working in co-operation with the Principal Agent in organising the work in such a way as to cause the minimum disruption to the normal activities of the precinct. F:___________ V:___________ T:____________ | C211: Item | D211: 1 | E211: 0 | F211: =D211*E211 -> 0
A213: 87 | B213: E21 INACCURATE AND DEFECTIVE WORK EXECUTED UNDER PREVIOUS CONTRACT The Contractor shall, after taking possession of the site and before commencing the work, check all levels, liners, profiles and the like and satisfy himself as to the dimensional accuracy of all work executed under the previous contract which may affect his work. Should any inaccurate or defective work be found, the Contractor shall immediately notify the Principal Agent in writing requesting his instructions with regard thereto and afford every facility to those rectifying such inaccurate or defective work. F:___________ V:___________ T:____________ | C213: Item | D213: 1 | E213: 0 | F213: =D213*E213 -> 0
A215: 88 | B215: E22 VIEWING THE SITE IN SECURITY AREAS If the site is situated in a security area and the Bidder must arrange with the Authorities to obtain permission to enter the site. F:___________ V:___________ T:____________ | C215: Item | D215: 1 | E215: 0 | F215: =D215*E215 -> 0
A217: 89 | B217: E23 COMMENCEMENT OF WORKS IN SECURITY AREAS If the works falls within a security area, the Contractor must arrange with the Authorities and give the necessary notices before commencement of the works. Should the Contractor fail to make such arrangements, admission to the site may be refused and any additional costs will be for the Contractor's account. F:___________ V:___________ T:____________ | C217: Item | D217: 1 | E217: 0 | F217: =D217*E217 -> 0
A219: 90 | B219: E24 ENTRANCE PERMITS TO SECURITY AREAS If the works fall within a security area, the Contractor shall obtain entrance permits for his personnel and workmen entering the area and shall comply with all regulations and instructions which may be issued from time to time regarding the protection of persons and property under control of the Authority. F:___________ V:___________ T:____________ | C219: Item | D219: 1 | E219: 0 | F219: =D219*E219 -> 0
A221: 91 | B221: E25 SECURITY CHECK OF PERSONNEL The Principal Agent may require the Contractor to have his personnel and workmen, or a certain number of them, security classified. In the event of the Principal Agent requesting the removal of a person or persons from the works for security reasons, the Contractor shall do so forthwith and shall thereafter ensure that such person or persons are denied access to the works and the site and/or to any document or information relating to the works. F:___________ V:___________ T:____________ | C221: Item | D221: 1 | E221: 0 | F221: =D221*E221 -> 0
A223: 92 | B223: E26 PROHIBITION ON TAKING PHOTOGRAPHS In terms of article 119 of the Defence Act, 44 of 1957, it is prohibited to sketch or to take photographs of any military site or installation or any building or civil works thereon or to be in possession of a camera or other apparatus used for taking photographs, except when authorised thereto by or on behalf of the Minister." The same prohibition is also applicable to all Correctional Institutions in terms of article 44.1(e) of the Correctional Services Act 8 of 1959. F:___________ V:___________ T:____________ | C223: Item | D223: 1 | E223: 0 | F223: =D223*E223 -> 0
A225: 93 | B225: E27 NATURE AND EXTENT OF WORK The broad scope of the work comprises repairs, renovation, alterations and replacement of roofing and waterproofing elements including investigative studies on existing mechanical and electrical elements. F:___________ V:___________ T:____________ | C225: Item | D225: 1 | E225: 0 | F225: =D225*E225 -> 0
A227: 94 | B227: E28 PROTECTION OF EXISTING Every care shall be taken to protect all parts of the building and ground against disfigurement of any kind. The Contractor shall be responsible for any damage caused to vehicles, persons or property by his operations, and he will be required to supply and maintain such temporary measures as are required, to prevent such damage. F:___________ V:___________ T:____________ | C227: Item | D227: 1 | E227: 0 | F227: =D227*E227 -> 0
A229: 95 | B229: E29 ACCESS The Contractor is to allow for all costs associated with sites having restricted access due to location, road conditions, etc. The Contractor to note the sites have extremely restricted access and in some instances , restricted access may affect the delivery of materials etc. The Contractor to accordingly ensure the most suitable and effective access routes are investigated and implemented to achieve continuity of the works. F:___________ V:___________ T:____________ | C229: Item | D229: 1 | E229: 0 | F229: =D229*E229 -> 0
A231: 96 | B231: E30 SAFETY TO THE SITE All scaffolding, protection, machinery and tools on the site shall be erected, used and/or maintained in accordance of the requirements of the Occupational Health and Safety Act (85/1993) as amended and any regulations thereto. All relevant local authority by-laws shall also be complied with. The Contractor to provide suitable hoarding to demarcate the area of the construction works from the other adjacent operational areas. All open excavations and incomplete construction work to be cordoned off with danger tape. Contractor to note that access to the site is restricted to the main entrance only. F:__________ V:__________ T:___________ | C231: Item | D231: 1 | E231: 0 | F231: =D231*E231 -> 0
A233: 97 | B233: E31 ASBESTOS CEMENT All preparatory work, alterations, demolitions, etc. to existing asbestos cement roof sheeting, gutters, rainwater pipes, etc. are to be carried out strictly in accordance with statutory requirements (Occupational Health and Safety Act, 1993 - Asbestos Regulations, 2001) and all necessary precautions must be taken when working with and disposing of asbestos cement products and the disposing of waste resulting from cleaning operations, etc. Allowance is to be made for costs associated with compliance with these Regulations. F:___________ V:___________ T:____________ | C233: Item | D233: 1 | E233: 0 | F233: =D233*E233 -> 0
A235: 98 | B235: E32 EXISTING PREMISES OCCUPIED The Contractor shall carry out the whole of the works with as little mess and noise as possible and with a minimum of disturbance to adjoining building and occupants. He shall provide proper protection and provide, erect and remove when directed, any temporary tarpaulins, temporary fences that may be necessary during the progress of the works, all to the satisfaction of the Principal Agent. The Contractor is to provide all site security personnel. F:__________ V:__________ T:___________ | C235: Item | D235: 1 | E235: 0 | F235: =D235*E235 -> 0
A237: 99 | B237: E33 HOISTING/WASTE CHUTES The Contractor must allow for hoisting equipment and rubble chutes for removal of redundant material off-site. F:___________ V:___________ T:____________ | C237: Item | D237: 1 | E237: 0 | F237: =D237*E237 -> 0
B239: SECTION NO. 2
B240: EXTERNAL WORKS
B241: BILL NO. 1
B242: PUMP ROOM (PROVISIONAL) (ALL TRADES)
B244: The Tenderer is referred to the relevant Clauses in the separate document Model Preambles for Trades (2017 Edition).
B246: EARTHWORKS (PROVISIONAL)
B247: EXCAVATION OTHER THAN BULK
B249: Excavation in earth not exceeding 2m deep
A250: 1 | B250: Reduce levels under floors | C250: m3 | D250: 7 | E250: 0 | F250: =D250*E250 -> 0
A252: 2 | B252: Trenches | C252: m3 | D252: 14 | E252: 0 | F252: =D252*E252 -> 0
B254: CARTING AWAY
B256: Extra over all excavations for carting away
A258: 3 | B258: Surplus material from excavations and/or stocked piles on site to a dumping site to be located by the contractor | C258: m3 | D258: 12 | E258: 0 | F258: =D258*E258 -> 0
B260: KEEPING EXCAVATIONS FREE OF WATER
B262: Keeping excavations free of water
A264: 4 | B264: Allow for keeping excavations free of water or mud by hand or machinery | C264: Item | D264: 1 | E264: 0 | F264: =D264*E264 -> 0
B266: FILLING, ETC.
B268: Earth filling supplied by the contractor under floors, etc.
A270: 5 | B270: 150mm G5 Material in accordance with SABS 1200 DM compacted to 98% Mod. AASHTO density | C270: m3 | D270: 4 | E270: 0 | F270: =D270*E270 -> 0
B272: EXCAVATION, FILLING, ETC OTHER THAN BULK
B274: Earth filling obtained from the excavations and/or prescribed stock piles on site, compacted in layers not exceeding 150mm thick to 95% Mod AASHTO density
A276: 6 | B276: Backfilling to trenches, holes, etc. | C276: m3 | D276: 9 | E276: 0 | F276: =D276*E276 -> 0
B278: COMPACTION
B280: Compaction of surfaces
A282: 7 | B282: Compaction of ground surfaces under floors, etc. including scarifying for a depth of 150mm, breaking down oversize material, adding suitable material where necessary and compacting to 93% Mod. AASHTO density | C282: m2 | D282: 27 | E282: 0 | F282: =D282*E282 -> 0
B284: TESTS
B286: Prescribed density tests on filling
A288: 8 | B288: Modified AASHTO Density test | C288: No | D288: 1 | E288: 0 | F288: =D288*E288 -> 0
A290: 9 | B290: "Field Density" test including "Optimum Moisture Content" (four readings per test) | C290: No | D290: 1 | E290: 0 | F290: =D290*E290 -> 0
B292: SOIL POISONING
B294: Soil insecticide in accordance to SANS 5859
A296: 10 | B296: Under floors, etc. including forming and poisoning shallow furrows against foundation walls, etc., filling in furrows and ramming | C296: m2 | D296: 27 | E296: 0 | F296: =D296*E296 -> 0
A298: 11 | B298: To bottoms and sides of trenches, holes, etc. | C298: m2 | D298: 56 | E298: 0 | F298: =D298*E298 -> 0
B300: CONCRETE, FORMWORK AND REINFORCEMENT
B302: UNREINFORCED CONCRETE CAST AGAINST EXCAVATED SURFACES
B304: 15MPa Concrete
A306: 12 | B306: Surface blinding under footings, etc. | C306: m3 | D306: 1 | E306: 0 | F306: =D306*E306 -> 0
B308: REINFORCED CONCRETE CAST AGAINST EXCAVATED SURFACES
B310: 25Mpa/19mm Concrete
A312: 13 | B312: Strip footings | C312: m3 | D312: 4 | E312: 0 | F312: =D312*E312 -> 0
A314: 14 | B314: Surface beds | C314: m3 | D314: 3 | E314: 0 | F314: =D314*E314 -> 0
B316: REINFORCED CONCRETE CAST ON/IN FORMWORK
B318: 25Mpa/19mm Concrete
A320: 15 | B320: Plinth | C320: m3 | D320: 3 | E320: 0 | F320: =D320*E320 -> 0
B321: CONCRETE SUNDRIES
B323: Finishing top surfaces of concrete with non slip wood float
A325: 16 | B325: Surface beds, slabs, etc. | C325: m2 | D325: 27 | E325: 0 | F325: =D325*E325 -> 0
B327: Test blocks
A329: 17 | B329: Prepare a set of three concrete cubes each cube size 150 x 150 x 150mm for strength cubes and deliver to an approved laboratory for testing and pay all charges in connection therewith | C329: Sets | D329: 2 | E329: 0 | F329: =D329*E329 -> 0
B331: ROUGH FORMWORK (DEGREE OF ACCURACY II)
B333: Rough formwork to sides
A335: 18 | B335: Edges, risers, ends and reveals not exceeding 300mm high | C335: m | D335: 20 | E335: 0 | F335: =D335*E335 -> 0
B337: Boxing in smooth formwork to form
A339: 19 | B339: 50mm Horizontal chamfer at corner | C339: m | D339: 13 | E339: 0 | F339: =D339*E339 -> 0
B341: MOVEMENT JOINTS, ETC.
B343: Saw cut joints
A345: 20 | B345: 3 x 30mm Saw cut joints in top of concrete | C345: m | D345: 15 | E345: 0 | F345: =D345*E345 -> 0
B347: Expansion joints with 10mm softboard between vertical concrete surfaces
A349: 21 | B349: 10mm Joints not exceeding 300mm high | C349: m | D349: 23 | E349: 0 | F349: =D349*E349 -> 0
B351: Isolation joints with 10mm polystyrene between vertical concrete and brick surfaces
A353: 22 | B353: 10mm Joints not exceeding 300mm high | C353: m | D353: 30 | E353: 0 | F353: =D353*E353 -> 0
B355: REINFORCEMENT
B357: High tensile steel reinforcement to structural concrete work
A359: 23 | B359: Bars of varying diameters | C359: t | D359: 0.600 | E359: 0 | F359: =D359*E359 -> 0
B361: Fabric reinforcement
A363: 24 | B363: Type 193 fabric reinforcement in concrete surface bed, slabs, etc. | C363: m2 | D363: 27 | E363: 0 | F363: =D363*E363 -> 0
B365: MASONRY
B367: BRICKWORK IN FOUNDATIONS (PROVISIONAL)
B369: Brickwork of NFX (14Mpa nominal compressive strength) in class II mortar
A371: 25 | B371: One brick walls | C371: m2 | D371: 17 | E371: 0 | F371: =D371*E371 -> 0
B373: BRICKWORK IN SUPERSTRUCTURE
B375: Brickwork of NFX bricks (14 MPa nominal compressive strength) in class II mortar
A377: 26 | B377: One brick walls | C377: m2 | D377: 78 | E377: 0 | F377: =D377*E377 -> 0
B379: BRICKWORK SUNDRIES
B381: Bagging of 1:3 cement and sand mixture
A383: 27 | B383: On outer face of inner skin of brick walls including any additional labour required in raising wall in two separate skins and working around brick reinforcing fabric | C383: m2 | D383: 78 | E383: 0 | F383: =D383*E383 -> 0
B385: Galvanised brickwork reinforcement
A387: 28 | B387: 150mm Wide reinforcement built in horizontally | C387: m | D387: 312 | E387: 0 | F387: =D387*E387 -> 0
B389: FACE BRICKWORK
... 843 more rows
